[Event "*** Titled Tuesday Blitz"]
[Site "Chess.com"]
[Date "2020.03.03"]
[Round "1"]
[White "silverback96"]
[Black "csati17"]
[Result "0-1"]
[WhiteElo "1894"]
[BlackElo "2562"]
[TimeControl "180+1"]
[EndTime "9:02:08 PST"]
[Termination "csati17 won by resignation"]

1. d4 {[%clk 0:02:54.4]} 1... Nf6 {[%clk 0:02:59.7]} 2. c4 {[%clk 0:02:53.9]}
2... e6 {[%clk 0:02:59.8]} 3. g3 {[%clk 0:02:53.9]} 3... Bb4+ {[%clk 0:02:57.9]}
4. Nc3 {[%clk 0:02:53.1]} 4... O-O {[%clk 0:02:57.5]} 5. Bg2 {[%clk 0:02:51.7]}
5... d5 {[%clk 0:02:57.9]} 6. a3 {[%clk 0:02:52.1]} 6... Bxc3+ {[%clk 0:02:57]}
7. bxc3 {[%clk 0:02:53]} 7... b6 {[%clk 0:02:50.7]} 8. cxd5 {[%clk 0:02:39.5]}
8... exd5 {[%clk 0:02:49.9]} 9. Nf3 {[%clk 0:02:24.7]} 9... Ne4 {[%clk
0:02:45.8]} 10. Qc2 {[%clk 0:02:17.3]} 10... Qf6 {[%clk 0:02:31.6]} 11. Nd2
{[%clk 0:02:11.2]} 11... Qxf2+ {[%clk 0:02:29.2]} 12. Kd1 {[%clk 0:02:10.2]}
12... Qxg2 {[%clk 0:02:29.4]} 13. Nxe4 {[%clk 0:02:10.5]} 13... Qxh1+ {[%clk
0:02:29.4]} 14. Kd2 {[%clk 0:02:09.6]} 14... Qxe4 {[%clk 0:02:29.4]} 15. Qxe4
{[%clk 0:02:09.7]} 15... dxe4 {[%clk 0:02:29.2]} 16. Ke3 {[%clk 0:02:10.6]}
16... Bb7 {[%clk 0:02:27.2]} 0-1

[Event "*** Titled Tuesday Blitz"]
[Site "Chess.com"]
[Date "2020.03.03"]
[Round "1"]
[White "ahachess"]
[Black "bgfbfbgfbgfgf"]
[Result "0-1"]
[WhiteElo "2247"]
[BlackElo "2641"]
[TimeControl "180+1"]
[EndTime "9:03:10 PST"]
[Termination "bgfbfbgfbgfgf won by resignation"]

1. d4 {[%clk 0:03:00.9]} 1... Nf6 {[%clk 0:02:58.8]} 2. c4 {[%clk 0:03:00.6]}
2... c5 {[%clk 0:02:58.5]} 3. d5 {[%clk 0:03:00.4]} 3... e6 {[%clk 0:02:58.7]}
4. Nc3 {[%clk 0:03:00]} 4... d6 {[%clk 0:02:56.2]} 5. g3 {[%clk 0:02:59.3]} 5...
g6 {[%clk 0:02:55.7]} 6. Bg2 {[%clk 0:02:58.5]} 6... Bg7 {[%clk 0:02:52.8]} 7.
Nf3 {[%clk 0:02:57.7]} 7... exd5 {[%clk 0:02:51.8]} 8. cxd5 {[%clk 0:02:57.3]}
8... O-O {[%clk 0:02:52.3]} 9. O-O {[%clk 0:02:57.3]} 9... Re8 {[%clk
0:02:52.7]} 10. a4 {[%clk 0:02:44.2]} 10... a6 {[%clk 0:02:49.8]} 11. Bf4 {[%clk
0:02:23.9]} 11... Ne4 {[%clk 0:02:48.7]} 12. Qc2 {[%clk 0:01:50.8]} 12... Bf5
{[%clk 0:02:46.1]} 13. Nh4 {[%clk 0:01:50.8]} 13... Nxc3 {[%clk 0:02:40.8]} 14.
Nxf5 {[%clk 0:01:50.2]} 14... Nxe2+ {[%clk 0:02:40.8]} 15. Kh1 {[%clk
0:01:49.8]} 15... gxf5 {[%clk 0:02:35.5]} 16. Qxf5 {[%clk 0:01:26.2]} 16... Nxf4
{[%clk 0:02:34.8]} 17. Qxf4 {[%clk 0:01:25.9]} 17... Qf6 {[%clk 0:02:34.2]} 18.
Qg4 {[%clk 0:01:20.4]} 18... Qg6 {[%clk 0:02:26.9]} 19. Qb4 {[%clk 0:01:18.6]}
19... cxb4 {[%clk 0:02:25.9]} 0-1

[Event "*** Titled Tuesday Blitz"]
[Site "Chess.com"]
[Date "2020.03.03"]
[Round "1"]
[White "Oleksandr_Bortnyk"]
[Black "AminMolaei"]
[Result "1-0"]
[WhiteElo "2971"]
[BlackElo "2526"]
[TimeControl "180+1"]
[EndTime "9:03:17 PST"]
[Termination "Oleksandr_Bortnyk won by resignation"]

1. e4 {[%clk 0:03:00.9]} 1... c5 {[%clk 0:03:00.3]} 2. c3 {[%clk 0:03:00.2]}
2... Nf6 {[%clk 0:02:59.7]} 3. e5 {[%clk 0:03:00.2]} 3... Nd5 {[%clk 0:03:00.2]}
4. d4 {[%clk 0:03:01.1]} 4... cxd4 {[%clk 0:03:01.1]} 5. Nf3 {[%clk 0:03:02]}
5... Nc6 {[%clk 0:03:01.3]} 6. cxd4 {[%clk 0:03:02.4]} 6... d6 {[%clk
0:03:01.4]} 7. Bc4 {[%clk 0:03:02.7]} 7... Nb6 {[%clk 0:02:58.3]} 8. Bb5 {[%clk
0:03:02.9]} 8... dxe5 {[%clk 0:02:51.8]} 9. Nxe5 {[%clk 0:03:03.8]} 9... Bd7
{[%clk 0:02:51.7]} 10. Nxd7 {[%clk 0:03:03.8]} 10... Qxd7 {[%clk 0:02:51.3]} 11.
Nc3 {[%clk 0:03:04.7]} 11... e6 {[%clk 0:02:51.3]} 12. O-O {[%clk 0:03:04.9]}
12... Be7 {[%clk 0:02:50.4]} 13. Qg4 {[%clk 0:03:05.2]} 13... Bf6 {[%clk
0:02:43.8]} 14. Rd1 {[%clk 0:02:58.7]} 14... h5 {[%clk 0:02:39.4]} 15. Qf3
{[%clk 0:02:56.2]} 15... O-O-O {[%clk 0:02:32.9]} 16. Ne4 {[%clk 0:02:26.9]}
16... Qd5 {[%clk 0:02:25.3]} 17. Bxc6 {[%clk 0:02:23]} 17... bxc6 {[%clk
0:02:24.6]} 18. Be3 {[%clk 0:02:19.4]} 18... Kb7 {[%clk 0:02:09.6]} 19. Rac1
{[%clk 0:02:13.6]} 19... Nc4 {[%clk 0:02:00.7]} 20. Nc5+ {[%clk 0:01:55.7]}
20... Ka8 {[%clk 0:02:00.3]} 21. Rxc4 {[%clk 0:01:54.4]} 1-0

[Event "*** Titled Tuesday Blitz"]
[Site "Chess.com"]
[Date "2020.03.03"]
[Round "1"]
[White "Quiet_Desperation"]
[Black "bilelou"]
[Result "0-1"]
[WhiteElo "2037"]
[BlackElo "2569"]
[TimeControl "180+1"]
[EndTime "9:03:21 PST"]
[Termination "bilelou won by resignation"]

1. e4 {[%clk 0:02:58.9]} 1... c5 {[%clk 0:02:58.4]} 2. Nf3 {[%clk 0:02:57.5]}
2... Nc6 {[%clk 0:02:59]} 3. d4 {[%clk 0:02:57]} 3... cxd4 {[%clk 0:02:58.3]} 4.
Nxd4 {[%clk 0:02:57.5]} 4... e5 {[%clk 0:02:59]} 5. Nb5 {[%clk 0:02:57.1]} 5...
a6 {[%clk 0:02:59.7]} 6. N5c3 {[%clk 0:02:56.8]} 6... Bc5 {[%clk 0:02:55.8]} 7.
Bc4 {[%clk 0:02:55.9]} 7... Nge7 {[%clk 0:02:52]} 8. a4 {[%clk 0:02:49.6]} 8...
O-O {[%clk 0:02:52.2]} 9. O-O {[%clk 0:02:49]} 9... d6 {[%clk 0:02:51.6]} 10.
Bg5 {[%clk 0:02:46.5]} 10... Kh8 {[%clk 0:02:49.9]} 11. Nd5 {[%clk 0:02:46.1]}
11... f6 {[%clk 0:02:49.6]} 12. Be3 {[%clk 0:02:32.7]} 12... Nxd5 {[%clk
0:02:47.1]} 13. Bxc5 {[%clk 0:02:17.3]} 13... dxc5 {[%clk 0:02:46.7]} 14. Bxd5
{[%clk 0:02:14.7]} 14... Qc7 {[%clk 0:02:42.3]} 15. Bxc6 {[%clk 0:01:55.3]}
15... Qxc6 {[%clk 0:02:41.6]} 16. Qe2 {[%clk 0:01:55]} 16... Be6 {[%clk
0:02:41]} 17. Nc3 {[%clk 0:01:53.7]} 17... Rfd8 {[%clk 0:02:41.9]} 18. Rfd1
{[%clk 0:01:50.8]} 18... Rd4 {[%clk 0:02:42.8]} 19. Rd2 {[%clk 0:01:37.9]} 19...
Rad8 {[%clk 0:02:40.8]} 20. Rad1 {[%clk 0:01:37.1]} 20... Qb6 {[%clk 0:02:37.6]}
21. b3 {[%clk 0:01:31.3]} 21... h6 {[%clk 0:02:36]} 22. Nd5 {[%clk 0:01:30.2]}
22... Bxd5 {[%clk 0:02:33.4]} 23. exd5 {[%clk 0:01:29.7]} 23... R8xd5 {[%clk
0:02:33.5]} 24. c4 {[%clk 0:01:25.2]} 24... Rxd2 {[%clk 0:02:27.6]} 25. Rxd2
{[%clk 0:01:23.8]} 25... Rxd2 {[%clk 0:02:28.5]} 26. Qxd2 {[%clk 0:01:23.3]}
26... Qxb3 {[%clk 0:02:29]} 0-1

[Event "*** Titled Tuesday Blitz"]
[Site "Chess.com"]
[Date "2020.03.03"]
[Round "1"]
[White "Noam_Vitenberg"]
[Black "JSPrepz"]
[Result "0-1"]
[WhiteElo "2387"]
[BlackElo "2739"]
[TimeControl "180+1"]
[EndTime "9:03:26 PST"]
[Termination "JSPrepz won by resignation"]

1. Nf3 {[%clk 0:02:58.7]} 1... c5 {[%clk 0:02:50.4]} 2. c4 {[%clk 0:02:43.7]}
2... g6 {[%clk 0:02:47.2]} 3. e3 {[%clk 0:02:36.1]} 3... Nf6 {[%clk 0:02:41.6]}
4. Nc3 {[%clk 0:02:30.9]} 4... Bg7 {[%clk 0:02:38.8]} 5. d4 {[%clk 0:02:29.6]}
5... cxd4 {[%clk 0:02:39]} 6. Nxd4 {[%clk 0:02:29.2]} 6... O-O {[%clk
0:02:38.6]} 7. Be2 {[%clk 0:02:28.9]} 7... Nc6 {[%clk 0:02:38.5]} 8. O-O {[%clk
0:02:28.7]} 8... d5 {[%clk 0:02:33.8]} 9. cxd5 {[%clk 0:02:13.4]} 9... Nxd5
{[%clk 0:02:34.7]} 10. Nxc6 {[%clk 0:02:13.2]} 10... bxc6 {[%clk 0:02:34.5]} 11.
Bd2 {[%clk 0:02:08.9]} 11... Rb8 {[%clk 0:02:33.7]} 12. Rb1 {[%clk 0:02:05.5]}
12... Bf5 {[%clk 0:02:32.7]} 13. Rc1 {[%clk 0:01:31.6]} 13... Rxb2 {[%clk
0:02:27.2]} 14. Bf3 {[%clk 0:01:26.2]} 14... Rxd2 {[%clk 0:02:21.6]} 15. Qxd2
{[%clk 0:01:21.3]} 15... Nxc3 {[%clk 0:02:21.6]} 16. Qxd8 {[%clk 0:01:11.4]}
16... Rxd8 {[%clk 0:02:22.5]} 17. Bxc6 {[%clk 0:01:11.8]} 17... Ne2+ {[%clk
0:02:22.5]} 0-1

[Event "*** Titled Tuesday Blitz"]
[Site "Chess.com"]
[Date "2020.03.03"]
[Round "1"]
[White "ronaldbrizuela"]
[Black "shanemelaughcm"]
[Result "1-0"]
[WhiteElo "2663"]
[BlackElo "2279"]
[TimeControl "180+1"]
[EndTime "9:03:55 PST"]
[Termination "ronaldbrizuela won by resignation"]

1. d4 {[%clk 0:02:58.8]} 1... e6 {[%clk 0:02:51.9]} 2. c4 {[%clk 0:02:58.8]}
2... f5 {[%clk 0:02:49.8]} 3. Nc3 {[%clk 0:02:57.2]} 3... Nf6 {[%clk 0:02:50]}
4. Bf4 {[%clk 0:02:50.6]} 4... Be7 {[%clk 0:02:49.4]} 5. e3 {[%clk 0:02:50.5]}
5... b6 {[%clk 0:02:47.9]} 6. h3 {[%clk 0:02:50.5]} 6... Bb7 {[%clk 0:02:48.4]}
7. Nf3 {[%clk 0:02:50.8]} 7... O-O {[%clk 0:02:47.8]} 8. Be2 {[%clk 0:02:51.3]}
8... d6 {[%clk 0:02:41.6]} 9. Bh2 {[%clk 0:02:50.6]} 9... Ne4 {[%clk 0:02:42]}
10. O-O {[%clk 0:02:45]} 10... Nd7 {[%clk 0:02:42.6]} 11. Nxe4 {[%clk
0:02:44.7]} 11... Bxe4 {[%clk 0:02:42.3]} 12. Nd2 {[%clk 0:02:44.5]} 12... Bb7
{[%clk 0:02:41.7]} 13. Bf3 {[%clk 0:02:44.8]} 13... Bxf3 {[%clk 0:02:41.8]} 14.
Qxf3 {[%clk 0:02:45.7]} 14... Bf6 {[%clk 0:02:22.7]} 15. Rfd1 {[%clk 0:02:36.8]}
15... Qe7 {[%clk 0:02:22.5]} 16. b4 {[%clk 0:02:30.6]} 16... c5 {[%clk
0:02:20.2]} 17. bxc5 {[%clk 0:02:24.6]} 17... dxc5 {[%clk 0:02:16.6]} 18. Nb3
{[%clk 0:02:20.6]} 18... Rfd8 {[%clk 0:02:09.3]} 19. Rac1 {[%clk 0:02:17.9]}
19... cxd4 {[%clk 0:02:06.2]} 20. exd4 {[%clk 0:02:15.7]} 20... e5 {[%clk
0:02:03]} 21. Qxf5 {[%clk 0:02:09]} 21... exd4 {[%clk 0:02:00.6]} 22. Nxd4
{[%clk 0:02:08.5]} 22... Nc5 {[%clk 0:01:57.9]} 23. Nb3 {[%clk 0:02:02.8]} 23...
Rxd1+ {[%clk 0:01:50.2]} 24. Rxd1 {[%clk 0:02:01.1]} 24... Qe2 {[%clk
0:01:38.8]} 25. Qd5+ {[%clk 0:01:58.9]} 25... Kh8 {[%clk 0:01:35.6]} 26. Qxa8+
{[%clk 0:01:57.9]} 1-0

[Event "*** Titled Tuesday Blitz"]
[Site "Chess.com"]
[Date "2020.03.03"]
[Round "1"]
[White "NguyenHlb"]
[Black "Sven_Tica"]
[Result "0-1"]
[WhiteElo "2289"]
[BlackElo "2681"]
[TimeControl "180+1"]
[EndTime "9:04:26 PST"]
[Termination "Sven_Tica won by resignation"]

1. d4 {[%clk 0:02:59]} 1... Nf6 {[%clk 0:02:59.2]} 2. c4 {[%clk 0:02:58.6]} 2...
e6 {[%clk 0:02:59.1]} 3. Nc3 {[%clk 0:02:53.1]} 3... d5 {[%clk 0:02:59.7]} 4.
cxd5 {[%clk 0:02:50.4]} 4... exd5 {[%clk 0:03:00.6]} 5. Bg5 {[%clk 0:02:50]}
5... c6 {[%clk 0:03:01.2]} 6. e3 {[%clk 0:02:50.3]} 6... h6 {[%clk 0:03:01.3]}
7. Bh4 {[%clk 0:02:49.7]} 7... Be6 {[%clk 0:03:01.6]} 8. Bd3 {[%clk 0:02:49.7]}
8... Nbd7 {[%clk 0:03:02]} 9. Nge2 {[%clk 0:02:49.4]} 9... g5 {[%clk 0:03:02.3]}
10. Bg3 {[%clk 0:02:49.3]} 10... Nh5 {[%clk 0:03:03]} 11. Qb3 {[%clk 0:02:40.4]}
11... Nxg3 {[%clk 0:02:59.2]} 12. Nxg3 {[%clk 0:02:39.6]} 12... Qc7 {[%clk
0:02:53.7]} 13. Rc1 {[%clk 0:02:36.7]} 13... h5 {[%clk 0:02:47.7]} 14. Nf5
{[%clk 0:02:32]} 14... O-O-O {[%clk 0:02:41.2]} 15. Nb5 {[%clk 0:02:22.4]} 15...
Qa5+ {[%clk 0:02:40.3]} 16. Ke2 {[%clk 0:02:20.4]} 16... Kb8 {[%clk 0:02:33.3]}
17. Nbd6 {[%clk 0:02:18.7]} 17... Nb6 {[%clk 0:02:24.1]} 18. Rc5 {[%clk
0:01:59]} 18... Qa4 {[%clk 0:02:24.1]} 19. Qc3 {[%clk 0:01:43.2]} 19... Bxf5
{[%clk 0:02:07.1]} 20. Ra5 {[%clk 0:01:31.8]} 20... Bxd3+ {[%clk 0:02:04.8]} 21.
Kxd3 {[%clk 0:01:31.5]} 21... Qxa5 {[%clk 0:02:03.4]} 22. Qxa5 {[%clk
0:01:31.3]} 22... Bxd6 {[%clk 0:02:04.1]} 23. h3 {[%clk 0:01:31.1]} 23... f5
{[%clk 0:02:04.1]} 24. Rc1 {[%clk 0:01:30.7]} 24... f4 {[%clk 0:02:04.1]} 25. b4
{[%clk 0:01:27.4]} 25... fxe3 {[%clk 0:02:03.1]} 26. fxe3 {[%clk 0:01:27.3]}
26... Rhe8 {[%clk 0:02:03]} 27. b5 {[%clk 0:01:26.4]} 27... Nc4 {[%clk
0:02:03.3]} 28. Rxc4 {[%clk 0:01:16.9]} 28... dxc4+ {[%clk 0:02:04.2]} 29. Kxc4
{[%clk 0:01:17.8]} 29... Bc7 {[%clk 0:02:01.1]} 30. Qd2 {[%clk 0:01:16.1]} 30...
cxb5+ {[%clk 0:01:59.7]} 31. Kxb5 {[%clk 0:01:17]} 31... g4 {[%clk 0:01:58.9]}
32. hxg4 {[%clk 0:01:16.2]} 32... hxg4 {[%clk 0:01:59.8]} 33. Kc4 {[%clk
0:01:14.5]} 33... g3 {[%clk 0:01:59.9]} 34. d5 {[%clk 0:01:14.1]} 34... Re4+
{[%clk 0:01:55.5]} 35. Kc3 {[%clk 0:01:10.9]} 35... Ba5+ {[%clk 0:01:55]} 0-1

[Event "*** Titled Tuesday Blitz"]
[Site "Chess.com"]
[Date "2020.03.03"]
[Round "1"]
[White "Angry_Twin"]
[Black "Frolik67"]
[Result "1-0"]
[WhiteElo "2875"]
[BlackElo "2498"]
[TimeControl "180+1"]
[EndTime "9:04:48 PST"]
[Termination "Angry_Twin won by resignation"]

1. e4 {[%clk 0:02:59.2]} 1... e6 {[%clk 0:02:56.1]} 2. d4 {[%clk 0:02:58.4]}
2... d5 {[%clk 0:02:44.9]} 3. Nc3 {[%clk 0:02:57.2]} 3... Nf6 {[%clk 0:02:41.6]}
4. e5 {[%clk 0:02:57]} 4... Nfd7 {[%clk 0:02:40.3]} 5. f4 {[%clk 0:02:57.5]}
5... c5 {[%clk 0:02:36.6]} 6. Nf3 {[%clk 0:02:57.4]} 6... Nc6 {[%clk 0:02:36.5]}
7. Be3 {[%clk 0:02:58]} 7... Qb6 {[%clk 0:02:35.5]} 8. Na4 {[%clk 0:02:52.3]}
8... Qa5+ {[%clk 0:02:35.7]} 9. c3 {[%clk 0:02:52.4]} 9... cxd4 {[%clk 0:02:36]}
10. b4 {[%clk 0:02:49.7]} 10... Nxb4 {[%clk 0:02:36.4]} 11. cxb4 {[%clk
0:02:49.4]} 11... Bxb4+ {[%clk 0:02:37.3]} 12. Bd2 {[%clk 0:02:49.8]} 12...
Bxd2+ {[%clk 0:02:37.8]} 13. Nxd2 {[%clk 0:02:48.6]} 13... b5 {[%clk 0:02:38.5]}
14. Nb2 {[%clk 0:02:49.1]} 14... Nb6 {[%clk 0:02:39.1]} 15. a4 {[%clk
0:02:34.3]} 15... Nc4 {[%clk 0:01:58.4]} 16. axb5 {[%clk 0:02:25.8]} 16... Qc3
{[%clk 0:01:49.5]} 17. Nxc4 {[%clk 0:02:25.1]} 17... dxc4 {[%clk 0:01:50.4]} 18.
Bxc4 {[%clk 0:02:19.5]} 18... Bb7 {[%clk 0:01:45.7]} 19. O-O {[%clk 0:02:12.5]}
19... O-O {[%clk 0:01:25.9]} 20. Rf2 {[%clk 0:02:03.9]} 20... Rfc8 {[%clk
0:00:56.4]} 21. Bf1 {[%clk 0:01:53.1]} 21... Bd5 {[%clk 0:00:45.8]} 22. Nf3
{[%clk 0:01:40.7]} 1-0

[Event "*** Titled Tuesday Blitz"]
[Site "Chess.com"]
[Date "2020.03.03"]
[Round "1"]
[White "Komissarov_alex"]
[Black "Willychess95"]
[Result "0-1"]
[WhiteElo "1767"]
[BlackElo "2555"]
[TimeControl "180+1"]
[EndTime "9:05:14 PST"]
[Termination "Willychess95 won on time"]

1. d4 {[%clk 0:02:54.2]} 1... Nf6 {[%clk 0:02:59.3]} 2. Nf3 {[%clk 0:02:51.3]}
2... e6 {[%clk 0:02:58.7]} 3. e3 {[%clk 0:02:50.2]} 3... c5 {[%clk 0:02:53.7]}
4. Nbd2 {[%clk 0:02:46.5]} 4... b6 {[%clk 0:02:53.3]} 5. Bd3 {[%clk 0:02:42.3]}
5... Bb7 {[%clk 0:02:52.9]} 6. O-O {[%clk 0:02:39.6]} 6... Be7 {[%clk
0:02:52.4]} 7. c3 {[%clk 0:02:35]} 7... O-O {[%clk 0:02:52.3]} 8. Re1 {[%clk
0:02:31.4]} 8... d5 {[%clk 0:02:50.2]} 9. Ne5 {[%clk 0:02:27.6]} 9... Nc6 {[%clk
0:02:45]} 10. f4 {[%clk 0:02:23.4]} 10... Nd7 {[%clk 0:02:44]} 11. Rf1 {[%clk
0:02:08.2]} 11... f5 {[%clk 0:02:41]} 12. Ndf3 {[%clk 0:01:51.3]} 12... Ncxe5
{[%clk 0:02:39.2]} 13. Nxe5 {[%clk 0:01:40.2]} 13... Nxe5 {[%clk 0:02:38.7]} 14.
fxe5 {[%clk 0:01:39.4]} 14... Bc6 {[%clk 0:02:35.5]} 15. Bd2 {[%clk 0:01:32.7]}
15... Be8 {[%clk 0:02:31.1]} 16. g4 {[%clk 0:01:26.8]} 16... g6 {[%clk
0:02:30.6]} 17. gxf5 {[%clk 0:01:13.3]} 17... gxf5 {[%clk 0:02:30.2]} 18. Kh1
{[%clk 0:01:03.9]} 18... Kh8 {[%clk 0:02:29.9]} 19. Rg1 {[%clk 0:01:01.1]} 19...
Bg6 {[%clk 0:02:28.9]} 20. Qf3 {[%clk 0:00:51.4]} 20... Rg8 {[%clk 0:02:25.5]}
21. Rg2 {[%clk 0:00:40.4]} 21... c4 {[%clk 0:02:25.6]} 22. Bc2 {[%clk
0:00:29.9]} 22... Qe8 {[%clk 0:02:25.3]} 23. Rag1 {[%clk 0:00:22.2]} 23... Qf7
{[%clk 0:02:23.6]} 24. Qh3 {[%clk 0:00:10.9]} 24... Rg7 {[%clk 0:02:16.8]} 0-1

[Event "*** Titled Tuesday Blitz"]
[Site "Chess.com"]
[Date "2020.03.03"]
[Round "1"]
[White "AlexTruskavetsky"]
[Black "alishersuleymenov"]
[Result "0-1"]
[WhiteElo "2404"]
[BlackElo "2764"]
[TimeControl "180+1"]
[EndTime "9:05:31 PST"]
[Termination "alishersuleymenov won on time"]

1. c4 {[%clk 0:02:52.3]} 1... Nf6 {[%clk 0:02:58.3]} 2. g3 {[%clk 0:02:50.5]}
2... g6 {[%clk 0:02:57.1]} 3. Bg2 {[%clk 0:02:50.1]} 3... Bg7 {[%clk 0:02:56.9]}
4. Nc3 {[%clk 0:02:48.1]} 4... O-O {[%clk 0:02:56.9]} 5. Nf3 {[%clk 0:02:44.7]}
5... d6 {[%clk 0:02:56.3]} 6. d4 {[%clk 0:02:43.2]} 6... Nc6 {[%clk 0:02:56.1]}
7. O-O {[%clk 0:02:41.9]} 7... Bd7 {[%clk 0:02:53.6]} 8. Bg5 {[%clk 0:02:35.1]}
8... h6 {[%clk 0:02:42.7]} 9. Bf4 {[%clk 0:02:30.9]} 9... Ng4 {[%clk 0:02:31.9]}
10. h3 {[%clk 0:02:25.4]} 10... e5 {[%clk 0:02:29.9]} 11. dxe5 {[%clk
0:02:23.2]} 11... dxe5 {[%clk 0:02:29.3]} 12. Bc1 {[%clk 0:02:18.7]} 12... Nf6
{[%clk 0:02:27.4]} 13. Be3 {[%clk 0:02:16.3]} 13... Be6 {[%clk 0:02:23.1]} 14.
Bc5 {[%clk 0:02:11.7]} 14... Re8 {[%clk 0:02:16.2]} 15. Nd2 {[%clk 0:02:10.9]}
15... Nd7 {[%clk 0:02:12.8]} 16. Ba3 {[%clk 0:02:08.7]} 16... f5 {[%clk
0:02:12.4]} 17. e4 {[%clk 0:01:34.5]} 17... f4 {[%clk 0:02:11.8]} 18. Nf3 {[%clk
0:01:18.4]} 18... Bxc4 {[%clk 0:02:07.8]} 19. Re1 {[%clk 0:01:15.6]} 19... Bf7
{[%clk 0:02:05.5]} 20. Qc2 {[%clk 0:01:12.3]} 20... fxg3 {[%clk 0:01:59.2]} 21.
fxg3 {[%clk 0:01:11]} 21... Nd4 {[%clk 0:01:58.1]} 22. Rad1 {[%clk 0:01:08.1]}
22... Nxc2 {[%clk 0:01:57.1]} 0-1

[Event "*** Titled Tuesday Blitz"]
[Site "Chess.com"]
[Date "2020.03.03"]
[Round "1"]
[White "AleksanderHnydiuk"]
[Black "Eliclax"]
[Result "1-0"]
[WhiteElo "2555"]
[BlackElo "1882"]
[TimeControl "180+1"]
[EndTime "9:05:48 PST"]
[Termination "AleksanderHnydiuk won by resignation"]

1. Nf3 {[%clk 0:02:45]} 1... d5 {[%clk 0:02:59.4]} 2. d4 {[%clk 0:02:44.7]} 2...
e6 {[%clk 0:02:57]} 3. c4 {[%clk 0:02:45.1]} 3... Bb4+ {[%clk 0:02:55.7]} 4. Bd2
{[%clk 0:02:43.7]} 4... Bxd2+ {[%clk 0:02:55.3]} 5. Nbxd2 {[%clk 0:02:39.8]}
5... Nf6 {[%clk 0:02:55.2]} 6. g3 {[%clk 0:02:36]} 6... O-O {[%clk 0:02:53.1]}
7. Bg2 {[%clk 0:02:36.5]} 7... b6 {[%clk 0:02:49.1]} 8. cxd5 {[%clk 0:02:32.2]}
8... exd5 {[%clk 0:02:43.2]} 9. O-O {[%clk 0:02:32.3]} 9... c5 {[%clk
0:02:40.3]} 10. Rc1 {[%clk 0:02:30.7]} 10... c4 {[%clk 0:02:37.7]} 11. Ne5
{[%clk 0:02:30.2]} 11... b5 {[%clk 0:02:29.6]} 12. b3 {[%clk 0:02:28.5]} 12...
Ba6 {[%clk 0:02:03.1]} 13. bxc4 {[%clk 0:02:23.1]} 13... bxc4 {[%clk 0:02:03.3]}
14. Ndxc4 {[%clk 0:02:20.2]} 14... Bxc4 {[%clk 0:02:02.2]} 15. Nxc4 {[%clk
0:02:19.2]} 15... Nbd7 {[%clk 0:01:55.9]} 16. Ne3 {[%clk 0:01:57.3]} 16... Nb6
{[%clk 0:01:54.6]} 17. a4 {[%clk 0:01:48.7]} 17... Rc8 {[%clk 0:01:54.2]} 18.
Rxc8 {[%clk 0:01:45.2]} 18... Nxc8 {[%clk 0:01:52.7]} 19. Qb3 {[%clk 0:01:42.5]}
19... Ne7 {[%clk 0:01:49]} 20. Rc1 {[%clk 0:01:41.9]} 20... Qd7 {[%clk
0:01:45.7]} 21. Qb5 {[%clk 0:01:35.6]} 21... Rd8 {[%clk 0:01:37.9]} 22. Qxd7
{[%clk 0:01:25.7]} 22... Rxd7 {[%clk 0:01:37.5]} 23. Rc5 {[%clk 0:01:24.7]}
23... h6 {[%clk 0:01:36.6]} 24. g4 {[%clk 0:01:14.9]} 24... Kh7 {[%clk
0:01:35.4]} 25. h4 {[%clk 0:01:14.1]} 25... Kg6 {[%clk 0:01:34.4]} 26. f4 {[%clk
0:01:11.7]} 26... Ne4 {[%clk 0:01:20.7]} 27. Rxd5 {[%clk 0:00:59.1]} 27... Nxd5
{[%clk 0:01:17.1]} 28. Bxe4+ {[%clk 0:00:58.4]} 28... Kf6 {[%clk 0:01:14.2]} 29.
Nxd5+ {[%clk 0:00:57.7]} 29... Ke6 {[%clk 0:01:06.5]} 30. Bf5+ {[%clk
0:00:57.1]} 30... Kxd5 {[%clk 0:01:06.6]} 31. Bxd7 {[%clk 0:00:57.3]} 31... Kxd4
{[%clk 0:01:07.3]} 32. Kf2 {[%clk 0:00:56.2]} 32... Ke4 {[%clk 0:01:07.4]} 33.
e3 {[%clk 0:00:55.6]} 33... a5 {[%clk 0:01:06.1]} 34. Bc6+ {[%clk 0:00:53.7]}
34... Kd3 {[%clk 0:01:04.7]} 35. Bd5 {[%clk 0:00:53.8]} 35... Kc3 {[%clk
0:01:03.9]} 36. Bxf7 {[%clk 0:00:52.7]} 1-0

[Event "*** Titled Tuesday Blitz"]
[Site "Chess.com"]
[Date "2020.03.03"]
[Round "1"]
[White "severomorskij"]
[Black "Omk124"]
[Result "1-0"]
[WhiteElo "2804"]
[BlackElo "2438"]
[TimeControl "180+1"]
[EndTime "9:05:49 PST"]
[Termination "severomorskij won by resignation"]

1. d4 {[%clk 0:03:00.9]} 1... Nf6 {[%clk 0:02:57.7]} 2. c4 {[%clk 0:03:00.3]}
2... g6 {[%clk 0:02:57.9]} 3. Nc3 {[%clk 0:02:59.3]} 3... Bg7 {[%clk 0:02:55.9]}
4. e4 {[%clk 0:02:59.1]} 4... O-O {[%clk 0:02:55.4]} 5. Bd3 {[%clk 0:02:58.6]}
5... d6 {[%clk 0:02:55.1]} 6. Nge2 {[%clk 0:02:57.7]} 6... e5 {[%clk 0:02:54.6]}
7. d5 {[%clk 0:02:57.2]} 7... Nbd7 {[%clk 0:02:52.8]} 8. O-O {[%clk 0:02:56.8]}
8... Ne8 {[%clk 0:02:49.7]} 9. Be3 {[%clk 0:02:52.4]} 9... f5 {[%clk 0:02:48.4]}
10. exf5 {[%clk 0:02:52.3]} 10... gxf5 {[%clk 0:02:47.1]} 11. f4 {[%clk
0:02:52.3]} 11... e4 {[%clk 0:02:40.7]} 12. Bc2 {[%clk 0:02:51.8]} 12... Nef6
{[%clk 0:02:40.6]} 13. Bd4 {[%clk 0:02:45.6]} 13... Qe7 {[%clk 0:02:39.2]} 14.
Qd2 {[%clk 0:02:44.5]} 14... Rf7 {[%clk 0:02:32.4]} 15. Kh1 {[%clk 0:02:36.8]}
15... Nf8 {[%clk 0:02:32.1]} 16. Rae1 {[%clk 0:02:32.7]} 16... Ng6 {[%clk
0:02:30]} 17. Ba4 {[%clk 0:02:26.2]} 17... Bd7 {[%clk 0:02:28.9]} 18. Bxd7
{[%clk 0:02:25.3]} 18... Qxd7 {[%clk 0:02:28.8]} 19. Nd1 {[%clk 0:02:22.6]}
19... Re8 {[%clk 0:02:25.5]} 20. Ne3 {[%clk 0:02:22.5]} 20... Ng4 {[%clk
0:02:21.9]} 21. Nxg4 {[%clk 0:02:09.6]} 21... fxg4 {[%clk 0:02:19.7]} 22. Bxg7
{[%clk 0:02:08.9]} 22... Rxg7 {[%clk 0:02:08.1]} 23. Nd4 {[%clk 0:02:06.9]}
23... Rf7 {[%clk 0:02:01.4]} 24. Ne6 {[%clk 0:01:45.9]} 24... Nf8 {[%clk
0:00:55.7]} 25. f5 {[%clk 0:01:44.2]} 25... Kh8 {[%clk 0:00:33.8]} 26. Qd4+
{[%clk 0:01:35.1]} 26... Kg8 {[%clk 0:00:32.4]} 27. Qxe4 {[%clk 0:01:29]} 27...
Nxe6 {[%clk 0:00:21.9]} 28. dxe6 {[%clk 0:01:26.5]} 1-0